[Event "13th Arad Open 2020"]
[Site "Arad"]
[Date "2020.09.26"]
[Round "1.1"]
[White "Solodovnichenko, Yuri"]
[Black "Tablan, Matei-Christian"]
[Result "1-0"]
[ECO "B40"]
[WhiteElo "2553"]
[BlackElo "1882"]
[Annotator "ChessBase"]
[PlyCount "93"]
[EventDate "2020.09.25"]
[EventType "swiss"]
[EventCountry "ROU"]
[SourceTitle "playchess.com"]
[Source "ChessBase"]
[SourceQuality "1"]
[TimeControl "5400+30"]

1. e4 c5 2. Nf3 e6 3. g3 Nc6 4. Bg2 g6 5. d4 Bg7 6. dxc5 Qa5+ 7. c3 Qxc5 8. O-O Nge7 9. Be3 Qa5 10. Qd6 Bf8 11. Qd3 a6 12. Nbd2 d5 13. Rfe1 Bg7 14. exd5 exd5 15. Nb3 Qd8 16. Nbd4 O-O 17. Bg5 f6 18. Bf4 g5 19. Bd2 Qd6 20. c4 g4 21. Nxc6 bxc6 22. Nd4 c5 23. Bf4 Qd8 24. Nc6 Nxc6 25. Qxd5+ Kh8 26. Qxd8 Nxd8 27. Bxa8 Bb7 28. Bxb7 Nxb7 29. Rad1 Na5 30. b3 Nc6 31. Bd6 Rc8 32. Kg2 Nd4 33. Bxc5 Nf3 34. Re6 h5 35. Rd5 Kh7 36. Rxa6 Re8 37. Be3 Kg6 38. Rd1 h4 39. h3 Kh5 40. Ra5+ Ne5 41. hxg4+ Kxg4 42. Rd4+ Kf5 43. f4 Bh6 44. Bf2 hxg3 45. Bxg3 Rg8 46. fxe5 Be3 47. e6+ 1-0

[Event "13th Arad Open 2020"]
[Site "Arad"]
[Date "2020.09.26"]
[Round "1.2"]
[White "Didiliuc, Dariana-Gabriela"]
[Black "Istratescu, Andrei"]
[Result "0-1"]
[ECO "E34"]
[WhiteElo "1880"]
[BlackElo "2551"]
[Annotator "ChessBase"]
[PlyCount "90"]
[EventDate "2020.09.25"]
[EventType "swiss"]
[EventCountry "ROU"]
[SourceTitle "playchess.com"]
[Source "ChessBase"]
[SourceQuality "1"]
[TimeControl "5400+30"]

1. d4 Nf6 2. c4 e6 3. Nc3 Bb4 4. Qc2 d5 5. cxd5 Qxd5 6. e3 c5 7. Bd2 Bxc3 8. Bxc3 cxd4 9. Bxd4 Nc6 10. Nf3 Nxd4 11. Nxd4 Bd7 12. Qb3 Qa5+ 13. Qc3 Qxc3+ 14. bxc3 Ne4 15. c4 Ke7 16. Bd3 Nc5 17. Be2 Rac8 18. O-O Rhd8 19. Rfc1 e5 20. Nb5 Bxb5 21. cxb5 Rd2 22. Bg4 Rc7 23. b6 axb6 24. a4 g6 25. a5 bxa5 26. Rxa5 b6 27. Rb5 f5 28. Bh3 Nd7 29. Rf1 Rc5 30. Rb4 b5 31. g4 fxg4 32. Bxg4 Nf6 33. Bf3 Ne8 34. Kg2 Nd6 35. Kg3 Rc4 36. Rb3 Rcc2 37. Bh1 h5 38. h3 Kf6 39. Ba8 e4 40. Rb4 Ke5 41. Rb3 Rc8 42. Ra1 Rf8 43. Ra6 g5 44. f4+ exf3 45. Rxd6 Rg2# 0-1

[Event "13th Arad Open 2020"]
[Site "Arad"]
[Date "2020.09.26"]
[Round "1.3"]
[White "Manolache, Marius"]
[Black "Panc, Samuel"]
[Result "1-0"]
[ECO "A80"]
[WhiteElo "2541"]
[BlackElo "1862"]
[Annotator "ChessBase"]
[PlyCount "35"]
[EventDate "2020.09.25"]
[EventType "swiss"]
[EventCountry "ROU"]
[SourceTitle "playchess.com"]
[Source "ChessBase"]
[SourceQuality "1"]
[TimeControl "5400+30"]

1. d4 f5 2. Nc3 g6 3. h4 Bg7 4. h5 Nh6 5. e4 d6 6. Nf3 fxe4 7. Nxe4 Bg4 8. Bd3 Nf5 9. Neg5 Qd7 10. d5 Bf6 11. hxg6 hxg6 12. Rxh8+ Bxh8 13. Qe2 c6 14. Qe4 Bxf3 15. Qxf3 e6 16. dxe6 Qe7 17. Bxf5 gxf5 18. Qh5+ 1-0

[Event "13th Arad Open 2020"]
[Site "Arad"]
[Date "2020.09.26"]
[Round "1.4"]
[White "Bartha, Andrei"]
[Black "Kozak, Adam"]
[Result "0-1"]
[ECO "B87"]
[WhiteElo "1856"]
[BlackElo "2503"]
[Annotator "ChessBase"]
[PlyCount "88"]
[EventDate "2020.09.25"]
[EventType "swiss"]
[EventCountry "ROU"]
[SourceTitle "playchess.com"]
[Source "ChessBase"]
[SourceQuality "1"]
[TimeControl "5400+30"]

1. e4 c5 2. Nf3 d6 3. d4 cxd4 4. Nxd4 Nf6 5. Nc3 a6 6. Bc4 e6 7. Bb3 b5 8. O-O Be7 9. f4 O-O 10. f5 e5 11. Nf3 Bb7 12. Re1 Nbd7 13. Bg5 Qb6+ 14. Be3 Qc7 15. Bg5 Rac8 16. Bxf6 Nxf6 17. a3 Qc5+ 18. Kf1 a5 19. Qd3 b4 20. axb4 axb4 21. Nd1 d5 22. exd5 e4 23. Rxe4 Nxe4 24. Qxe4 Bf6 25. Qe3 Bxd5 26. Qxc5 Rxc5 27. Bxd5 Rxd5 28. Ne3 Rc5 29. Ra4 Bxb2 30. Rxb4 Bc1 31. Nc4 Rxf5 32. Nce5 Ba3 33. Rb6 h5 34. Nc4 Bc5 35. Rb5 Re8 36. Ncd2 g5 37. Nb3 Ree5 38. Rxc5 Rxc5 39. Nxc5 Rxc5 40. Ne1 Kg7 41. Ke2 Kf6 42. Kd2 Kf5 43. Nd3 Rc8 44. h3 Ke4 0-1

[Event "13th Arad Open 2020"]
[Site "Arad"]
[Date "2020.09.26"]
[Round "1.5"]
[White "Filip, Lucian-Ioan"]
[Black "Balaban-Voia, Alexandru"]
[Result "1/2-1/2"]
[ECO "A05"]
[WhiteElo "2432"]
[BlackElo "1855"]
[Annotator "ChessBase"]
[PlyCount "37"]
[EventDate "2020.09.25"]
[EventType "swiss"]
[EventCountry "ROU"]
[SourceTitle "playchess.com"]
[Source "ChessBase"]
[SourceQuality "1"]
[TimeControl "5400+30"]

1. Nf3 Nf6 2. c4 b6 3. g3 Bb7 4. Bg2 g6 5. O-O Bg7 6. d4 O-O 7. Qc2 c5 8. d5 e6 9. e4 exd5 10. cxd5 d6 11. Nc3 Re8 12. Re1 Na6 13. Bf4 Nh5 14. Bg5 Qd7 15. h3 h6 16. Be3 b5 17. Rad1 Re7 18. g4 Nf6 19. Bf4 1/2-1/2

[Event "13th Arad Open 2020"]
[Site "Arad"]
[Date "2020.09.26"]
[Round "1.6"]
[White "Cretu, Sorin-Alexandru"]
[Black "Bogdan, Dan"]
[Result "1/2-1/2"]
[ECO "B27"]
[WhiteElo "1836"]
[BlackElo "2364"]
[Annotator "ChessBase"]
[PlyCount "59"]
[EventDate "2020.09.25"]
[EventType "swiss"]
[EventCountry "ROU"]
[SourceTitle "playchess.com"]
[Source "ChessBase"]
[SourceQuality "1"]
[TimeControl "5400+30"]

1. e4 c5 2. Nf3 g6 3. d4 cxd4 4. Nxd4 Nc6 5. Be3 Nf6 6. Nc3 Bg7 7. Be2 O-O 8. O-O d5 9. exd5 Nxd5 10. Nxc6 bxc6 11. Bd4 Nxc3 12. bxc3 Be6 13. Bf3 Qc7 14. Bxg7 Kxg7 15. Qe2 Qa5 16. Qe3 Rac8 17. Rfe1 Rfd8 18. g3 Rd6 19. Be4 Rcd8 20. Bd3 R8d7 21. Qe5+ Qxe5 22. Rxe5 Bd5 23. c4 f6 24. Re3 Bf7 25. f4 Rd4 26. Rae1 Kf8 27. Re4 f5 28. Rxd4 Rxd4 29. Rb1 Bxc4 30. Rb4 1/2-1/2

[Event "13th Arad Open 2020"]
[Site "Arad"]
[Date "2020.09.26"]
[Round "1.7"]
[White "Balla, Tamas-Kristof"]
[Black "Radu, David Cr."]
[Result "1-0"]
[ECO "A03"]
[WhiteElo "2356"]
[BlackElo "1814"]
[Annotator "ChessBase"]
[PlyCount "47"]
[EventDate "2020.09.25"]
[EventType "swiss"]
[EventCountry "ROU"]
[SourceTitle "playchess.com"]
[Source "ChessBase"]
[SourceQuality "1"]
[TimeControl "5400+30"]

1. f4 d5 2. Nf3 Nf6 3. b3 g6 4. Bb2 Bg7 5. e3 O-O 6. g3 c5 7. Bg2 Nc6 8. O-O Bf5 9. h3 h5 10. Ne5 Qc8 11. Kh2 Rd8 12. d3 h4 13. gxh4 Nh5 14. Nxc6 Qxc6 15. Bxg7 Kxg7 16. Nc3 e5 17. fxe5 Qc7 18. d4 f6 19. Rxf5 cxd4 20. Nb5 Qb8 21. Qg4 Kh6 22. Nxd4 fxe5 23. Rxh5+ gxh5 24. Nf5+ 1-0

[Event "13th Arad Open 2020"]
[Site "Arad"]
[Date "2020.09.26"]
[Round "1.8"]
[White "Mircov, Nicola-Alexandar"]
[Black "Talu, Mircea"]
[Result "0-1"]
[ECO "C54"]
[WhiteElo "1809"]
[BlackElo "2351"]
[Annotator "ChessBase"]
[PlyCount "46"]
[EventDate "2020.09.25"]
[EventType "swiss"]
[EventCountry "ROU"]
[SourceTitle "playchess.com"]
[Source "ChessBase"]
[SourceQuality "1"]
[TimeControl "5400+30"]

1. e4 e5 2. Nf3 Nc6 3. Bc4 Bc5 4. c3 Nf6 5. d4 exd4 6. cxd4 Bb4+ 7. Bd2 Bxd2+ 8. Nbxd2 d5 9. exd5 Nxd5 10. O-O O-O 11. Rc1 Nb6 12. Bb3 Bg4 13. h3 Bh5 14. Rc5 Bg6 15. d5 Ne7 16. Ne5 Nexd5 17. Nxg6 hxg6 18. Qf3 c6 19. Qg3 Qc7 20. Qd3 Rad8 21. Nf3 Rfe8 22. Re1 Rxe1+ 23. Nxe1 Qe7 0-1

[Event "13th Arad Open 2020"]
[Site "Arad"]
[Date "2020.09.26"]
[Round "1.9"]
[White "Patrascu, Catalin-Lucian"]
[Black "Sorbun, Cristinel"]
[Result "1-0"]
[ECO "B12"]
[WhiteElo "2320"]
[BlackElo "1806"]
[Annotator "ChessBase"]
[PlyCount "53"]
[EventDate "2020.09.25"]
[EventType "swiss"]
[EventCountry "ROU"]
[SourceTitle "playchess.com"]
[Source "ChessBase"]
[SourceQuality "1"]
[TimeControl "5400+30"]

1. e4 c6 2. d4 d6 3. Nf3 h6 4. c3 g5 5. Bc4 Bg7 6. Nbd2 Nd7 7. Nf1 Nf8 8. Ng3 Ng6 9. Nh5 Bf8 10. h3 e6 11. Qe2 Nf6 12. Nh2 Nxh5 13. Qxh5 Bg7 14. Be3 b5 15. Bd3 e5 16. Ng4 Bd7 17. Bc2 exd4 18. cxd4 Bxd4 19. Bxd4 Nf4 20. Nf6+ Qxf6 21. Bxf6 Nxh5 22. Bxh8 f6 23. Bd1 Ke7 24. Bxh5 Rxh8 25. O-O-O Be6 26. b3 a5 27. Kb2 1-0

[Event "13th Arad Open 2020"]
[Site "Arad"]
[Date "2020.09.26"]
[Round "1.10"]
[White "Mazilu, Stefan-Fabian"]
[Black "Ghimpu, Samuel-Timotei"]
[Result "0-1"]
[ECO "A87"]
[WhiteElo "1782"]
[BlackElo "2302"]
[Annotator "ChessBase"]
[PlyCount "56"]
[EventDate "2020.09.25"]
[EventType "swiss"]
[EventCountry "ROU"]
[SourceTitle "playchess.com"]
[Source "ChessBase"]
[SourceQuality "1"]
[TimeControl "5400+30"]

1. d4 g6 2. c4 f5 3. Nf3 Nf6 4. g3 Bg7 5. Bg2 O-O 6. O-O Ne4 7. Nc3 Nxc3 8. bxc3 d6 9. Qb3 Nc6 10. c5+ d5 11. Nd2 e6 12. a4 Kh8 13. e3 b6 14. Ba3 Rf7 15. Rfc1 Ba6 16. c4 Na5 17. Qa2 Nxc4 18. Nxc4 dxc4 19. Rd1 Rb8 20. cxb6 cxb6 21. Bb2 Rc8 22. Bc3 Bb7 23. Bxb7 Rxb7 24. Qe2 Qd5 25. f3 Rd7 26. a5 b5 27. e4 Qc6 28. d5 Qc5+ 0-1

[Event "13th Arad Open 2020"]
[Site "Arad"]
[Date "2020.09.26"]
[Round "2.1"]
[White "Paraschiv, Paul-Alexandru"]
[Black "Solodovnichenko, Yuri"]
[Result "0-1"]
[ECO "B96"]
[WhiteElo "2061"]
[BlackElo "2553"]
[Annotator "ChessBase"]
[PlyCount "70"]
[EventDate "2020.09.25"]
[EventType "swiss"]
[EventCountry "ROU"]
[SourceTitle "playchess.com"]
[Source "ChessBase"]
[SourceQuality "1"]
[TimeControl "5400+30"]

1. e4 {[%emt 0:00:07]} c5 {[%emt 0:00:00]} 2. Nf3 {[%emt 0:00:25]} d6 {[%emt 0:00:00]} 3. d4 {[%emt 0:00:16]} Nf6 {[%emt 0:00:07]} 4. Nc3 {[%emt 0:04:37]} cxd4 {[%emt 0:00:06]} 5. Nxd4 {[%emt 0:00:07]} a6 {[%emt 0:00:05]} 6. Bg5 {[%emt 0:04:47]} e6 {[%emt 0:00:25]} 7. f4 {[%emt 0:02:47]} h6 {[%emt 0:00:05]} 8. Bh4 {[%emt 0:00:06]} Qb6 {[%emt 0:00:18]} 9. Qd2 {[%emt 0:01:27]} Nc6 {[%emt 0:00:22]} 10. O-O-O {[%emt 0:05:46]} Nxd4 {[%emt 0:00:56]} 11. Qxd4 {[%emt 0:00:08]} Qxd4 {[%emt 0:00:04]} 12. Rxd4 {[%emt 0:00:07]} Be7 {[%emt 0:06:46]} 13. Bxf6 {[%emt 0:03:44]} gxf6 {[%emt 0:00:47]} 14. f5 {[%emt 0:00:20]} Bd7 {[%emt 0:02:45]} 15. Be2 {[%emt 0:01:44]} h5 {[%emt 0:00:08]} 16. h4 {[%emt 0:03:06]} Bf8 {[%emt 0:02:23]} 17. Kb1 {[%emt 0:01:43]} Bc6 {[%emt 0:00:11]} 18. Rhd1 {[%emt 0:02:15]} Rd8 {[%emt 0:00:08]} 19. Bf3 {[%emt 0:01:16]} Ke7 {[%emt 0:00:24]} 20. Ne2 {[%emt 0:00:30]} Bh6 {[%emt 0:00:23]} 21. R4d3 {[%emt 0:15:46]} Rhg8 {[%emt 0:03:36]} 22. b3 {[%emt 0:06:20]} b5 {[%emt 0:02:15]} 23. Rc3 {[%emt 0:01:10]} Ba8 {[%emt 0:03:48]} 24. Nd4 {[%emt 0:05:45]} Rc8 {[%emt 0:01:33]} 25. Rcd3 {[%emt 0:07:11]} Bf4 {[%emt 0:01:08]} 26. Re1 {[%emt 0:06:30]} Bg3 {[%emt 0:01:20]} 27. Rh1 {[%emt 0:00:15]} b4 {[%emt 0:01:14]} 28. a3 {[%emt 0:01:32]} a5 {[%emt 0:00:25]} 29. axb4 {[%emt 0:01:11]} axb4 {[%emt 0:00:04]} 30. Kb2 {[%emt 0:00:33]} Be5 {[%emt 0:03:36]} 31. Ra1 {[%emt 0:00:42]} exf5 {[%emt 0:00:37]} 32. Ra7+ {[%emt 0:01:12]} Kf8 {[%emt 0:00:30]} 33. Bxh5 {[%emt 0:00:32]} Rxg2 {[%emt 0:00:15]} 34. Kb1 {[%emt 0:08:25]} Bxe4 {[%emt 0:00:13]} 35. Bxf7 {[%emt 0:00:39]} Bxd4 {[%emt 0:01:03]} 0-1

[Event "13th Arad Open 2020"]
[Site "Arad"]
[Date "2020.09.26"]
[Round "2.2"]
[White "Istratescu, Andrei"]
[Black "Craciun, Alexandru-Emilian"]
[Result "1-0"]
[ECO "E11"]
[WhiteElo "2551"]
[BlackElo "2090"]
[Annotator "ChessBase"]
[PlyCount "69"]
[EventDate "2020.09.25"]
[EventType "swiss"]
[EventCountry "ROU"]
[SourceTitle "playchess.com"]
[Source "ChessBase"]
[SourceQuality "1"]
[TimeControl "5400+30"]

1. d4 {[%emt 0:00:00]} Nf6 {[%emt 0:00:00]} 2. c4 {[%emt 0:00:00]} e6 {[%emt 0:00:00]} 3. Nf3 {[%emt 0:00:59]} Bb4+ {[%emt 0:00:24]} 4. Nbd2 {[%emt 0:00:20]} O-O {[%emt 0:00:49]} 5. a3 {[%emt 0:00:08]} Bxd2+ {[%emt 0:00:09]} 6. Qxd2 {[%emt 0:00:03]} b6 {[%emt 0:00:42]} 7. e3 {[%emt 0:00:30]} Bb7 {[%emt 0:00:17]} 8. Be2 {[%emt 0:01:02]} a5 {[%emt 0:01:50]} 9. b3 {[%emt 0:00:30]} d6 {[%emt 0:00:27]} 10. O-O {[%emt 0:01:25]} Nbd7 {[%emt 0:00:33]} 11. Bb2 {[%emt 0:00:32]} Ne4 {[%emt 0:18:02]} 12. Qc2 {[%emt 0:00:33]} f5 {[%emt 0:00:09]} 13. Rad1 {[%emt 0:04:42]} Qe7 {[%emt 0:19:07]} 14. Ne1 {[%emt 0:05:07]} Rac8 {[%emt 0:06:22]} 15. f3 {[%emt 0:08:16]} Nef6 {[%emt 0:00:16]} 16. Qd2 {[%emt 0:00:25]} d5 {[%emt 0:02:26]} 17. Nd3 {[%emt 0:03:21]} Nh5 {[%emt 0:04:20]} 18. Rc1 {[%emt 0:02:32]} Qg5 {[%emt 0:04:10]} 19. c5 {[%emt 0:03:10]} Ba6 {[%emt 0:04:58]} 20. Rc2 {[%emt 0:06:50]} Bxd3 {[%emt 0:07:05]} 21. Bxd3 {[%emt 0:01:13]} f4 {[%emt 0:00:26]} 22. Re1 {[%emt 0:01:52]} fxe3 {[%emt 0:02:14]} 23. Qxe3 {[%emt 0:00:33]} Qxe3+ {[%emt 0:02:04]} 24. Rxe3 {[%emt 0:00:26]} bxc5 {[%emt 0:05:41]} 25. dxc5 {[%emt 0:00:53]} Rb8 {[%emt 0:04:36]} 26. c6 {[%emt 0:01:17]} Ndf6 {[%emt 0:00:25]} 27. Rc5 {[%emt 0:04:12]} Rb6 {[%emt 0:01:02]} 28. Bc3 {[%emt 0:07:30]} a4 {[%emt 0:08:19]} 29. bxa4 {[%emt 0:04:26]} Nf4 {[%emt 0:00:30]} 30. Bb5 {[%emt 0:00:40]} d4 {[%emt 0:02:08]} 31. Bxd4 {[%emt 0:00:09]} Rd8 {[%emt 0:00:25]} 32. Rc4 {[%emt 0:01:48]} Rbb8 {[%emt 0:03:53]} 33. Bxf6 {[%emt 0:00:54]} Rd1+ {[%emt 0:00:30]} 34. Kf2 {[%emt 0:00:03]} Rd2+ {[%emt 0:00:06]} 35. Ke1 {[%emt 0:00:21]} 1-0

[Event "13th Arad Open 2020"]
[Site "Arad"]
[Date "2020.09.26"]
[Round "2.3"]
[White "Suciu, Dinu-Simi"]
[Black "Manolache, Marius"]
[Result "0-1"]
[ECO "A48"]
[WhiteElo "2050"]
[BlackElo "2541"]
[Annotator "ChessBase"]
[PlyCount "64"]
[EventDate "2020.09.25"]
[EventType "swiss"]
[EventCountry "ROU"]
[SourceTitle "playchess.com"]
[Source "ChessBase"]
[SourceQuality "1"]
[TimeControl "5400+30"]

1. d4 {[%emt 0:02:11]} Nf6 {[%emt 0:00:00]} 2. Nf3 {[%emt 0:00:26]} g6 {[%emt 0:00:22]} 3. e3 {[%emt 0:00:45]} Bg7 {[%emt 0:00:33]} 4. Bd3 {[%emt 0:00:15]} d6 {[%emt 0:00:15]} 5. O-O {[%emt 0:00:18]} O-O {[%emt 0:00:19]} 6. Nbd2 {[%emt 0:00:31]} Nc6 {[%emt 0:01:06]} 7. c3 {[%emt 0:00:14]} e5 {[%emt 0:00:34]} 8. Qc2 {[%emt 0:03:23]} Qe7 {[%emt 0:10:39]} 9. Re1 {[%emt 0:05:54]} a6 {[%emt 0:05:45]} 10. a4 {[%emt 0:00:27]} Bg4 {[%emt 0:12:30]} 11. dxe5 {[%emt 0:00:32]} dxe5 {[%emt 0:00:09]} 12. e4 {[%emt 0:00:10]} Nh5 {[%emt 0:00:19]} 13. h3 {[%emt 0:03:51]} Be6 {[%emt 0:01:18]} 14. Bc4 {[%emt 0:00:22]} Nf4 {[%emt 0:00:27]} 15. Bxe6 {[%emt 0:08:46]} fxe6 {[%emt 0:00:22]} 16. b3 {[%emt 0:00:09]} Rf7 {[%emt 0:03:39]} 17. Ba3 {[%emt 0:06:33]} Qf6 {[%emt 0:00:27]} 18. Bc5 {[%emt 0:02:54]} g5 {[%emt 0:02:03]} 19. Nh2 {[%emt 0:00:42]} h5 {[%emt 0:01:42]} 20. Ndf1 {[%emt 0:01:33]} Kh8 {[%emt 0:05:20]} 21. Rad1 {[%emt 0:00:37]} Rg8 {[%emt 0:00:07]} 22. Rd2 {[%emt 0:00:31]} b6 {[%emt 0:10:42]} 23. Be3 {[%emt 0:04:07]} Ne7 {[%emt 0:00:11]} 24. Rd7 {[%emt 0:07:41]} Neg6 {[%emt 0:01:17]} 25. Rxf7 {[%emt 0:00:09]} Qxf7 {[%emt 0:00:03]} 26. Bc1 {[%emt 0:00:09]} Nh4 {[%emt 0:01:21]} 27. Ne3 {[%emt 0:00:07]} Bf8 {[%emt 0:03:45]} 28. b4 {[%emt 0:11:08]} g4 {[%emt 0:01:01]} 29. hxg4 {[%emt 0:00:52]} hxg4 {[%emt 0:00:07]} 30. g3 {[%emt 0:09:29]} Nf3+ {[%emt 0:00:28]} 31. Nxf3 {[%emt 0:00:38]} gxf3 {[%emt 0:00:05]} 32. Qd1 {[%emt 0:01:19]} Qh5 {[%emt 0:00:17]} 0-1

[Event "13th Arad Open 2020"]
[Site "Arad"]
[Date "2020.09.26"]
[Round "2.4"]
[White "Kozak, Adam"]
[Black "Magold, Victor"]
[Result "1-0"]
[ECO "E15"]
[WhiteElo "2503"]
[BlackElo "2045"]
[Annotator "ChessBase"]
[PlyCount "112"]
[EventDate "2020.09.25"]
[EventType "swiss"]
[EventCountry "ROU"]
[SourceTitle "playchess.com"]
[Source "ChessBase"]
[SourceQuality "1"]
[TimeControl "5400+30"]

1. d4 {[%emt 0:03:13]} Nf6 {[%emt 0:00:00]} 2. c4 {[%emt 0:00:12]} e6 {[%emt 0:00:00]} 3. Nf3 {[%emt 0:00:39]} b6 {[%emt 0:00:37]} 4. g3 {[%emt 0:00:17]} Bb4+ {[%emt 0:00:14]} 5. Bd2 {[%emt 0:00:14]} Be7 {[%emt 0:00:08]} 6. Bg2 {[%emt 0:00:37]} c6 {[%emt 0:00:25]} 7. O-O {[%emt 0:02:01]} d5 {[%emt 0:00:21]} 8. b3 {[%emt 0:10:13]} O-O {[%emt 0:00:46]} 9. Qc2 {[%emt 0:01:37]} Nbd7 {[%emt 0:01:58]} 10. Rd1 {[%emt 0:02:01]} Ba6 {[%emt 0:06:27]} 11. Bf4 {[%emt 0:07:32]} Rc8 {[%emt 0:04:14]} 12. Nbd2 {[%emt 0:03:44]} Nh5 {[%emt 0:02:21]} 13. Be3 {[%emt 0:02:11]} f5 {[%emt 0:10:48]} 14. Nf1 {[%emt 0:04:02]} Qe8 {[%emt 0:08:44]} 15. a4 {[%emt 0:05:57]} c5 {[%emt 0:21:09]} 16. dxc5 {[%emt 0:02:20]} Bxc5 {[%emt 0:05:16]} 17. Bxc5 {[%emt 0:02:08]} Nxc5 {[%emt 0:04:13]} 18. cxd5 {[%emt 0:03:34]} exd5 {[%emt 0:05:36]} 19. Nd4 {[%emt 0:02:25]} Ne4 {[%emt 0:01:58]} 20. Qb2 {[%emt 0:06:30]} f4 {[%emt 0:07:54]} 21. Bh3 {[%emt 0:10:45]} fxg3 {[%emt 0:04:28]} 22. fxg3 {[%emt 0:00:21]} Nf2 {[%emt 0:03:25]} 23. Be6+ {[%emt 0:02:52]} Kh8 {[%emt 0:00:07]} 24. Rdc1 {[%emt 0:06:16]} Rc5 {[%emt 0:00:54]} 25. b4 {[%emt 0:10:39]} Rc4 {[%emt 0:02:22]} 26. Rxc4 {[%emt 0:06:38]} dxc4 {[%emt 0:00:32]} 27. Nd2 {[%emt 0:01:25]} Bb7 {[%emt 0:03:59]} 28. N2f3 {[%emt 0:01:38]} Ne4 {[%emt 0:01:29]} 29. Bxc4 {[%emt 0:01:35]} Ng5 {[%emt 0:01:25]} 30. Qd2 {[%emt 0:00:40]} Bxf3 {[%emt 0:02:23]} 31. exf3 {[%emt 0:00:37]} Qc8 {[%emt 0:00:33]} 32. Qxg5 {[%emt 0:00:28]} Qxc4 {[%emt 0:00:06]} 33. Rd1 {[%emt 0:00:21]} Nf6 {[%emt 0:00:30]} 34. Nf5 {[%emt 0:00:11]} g6 {[%emt 0:00:46]} 35. Rd8 {[%emt 0:00:08]} Qf7 {[%emt 0:00:31]} 36. Nd6 {[%emt 0:00:37]} Qe7 {[%emt 0:00:17]} 37. Rxf8+ {[%emt 0:00:06]} Qxf8 {[%emt 0:00:07]} 38. Qe5 {[%emt 0:00:07]} Kg8 {[%emt 0:00:29]} 39. b5 {[%emt 0:00:29]} Nh5 {[%emt 0:01:20]} 40. Kg2 {[%emt 0:00:24]} Qf6 {[%emt 0:00:30]} 41. Qe8+ {[%emt 0:00:53]} Kg7 {[%emt 0:00:27]} 42. Qd7+ {[%emt 0:00:03]} Kg8 {[%emt 0:00:09]} 43. Qc8+ {[%emt 0:00:11]} Qf8 {[%emt 0:00:08]} 44. Qxf8+ {[%emt 0:00:45]} Kxf8 {[%emt 0:00:03]} 45. Nc8 {[%emt 0:00:06]} Nf6 {[%emt 0:00:26]} 46. Nxa7 {[%emt 0:00:09]} Nd5 {[%emt 0:00:32]} 47. Nc6 {[%emt 0:00:52]} Ke8 {[%emt 0:00:42]} 48. f4 {[%emt 0:01:23]} Kd7 {[%emt 0:00:21]} 49. a5 {[%emt 0:00:36]} bxa5 {[%emt 0:00:10]} 50. Nxa5 {[%emt 0:00:03]} Kc7 {[%emt 0:00:12]} 51. Nc4 {[%emt 0:00:12]} Nc3 {[%emt 0:00:12]} 52. b6+ {[%emt 0:00:08]} Kc6 {[%emt 0:00:23]} 53. Kf3 {[%emt 0:00:28]} Nd5 {[%emt 0:00:31]} 54. g4 {[%emt 0:01:26]} Nf6 {[%emt 0:02:02]} 55. h4 {[%emt 0:01:04]} Ng8 {[%emt 0:01:03]} 56. f5 {[%emt 0:00:33]} Kd5 1-0

[Event "13th Arad Open 2020"]
[Site "Arad"]
[Date "2020.09.26"]
[Round "2.5"]
[White "Magold, Filip"]
[Black "Balla, Tamas-Kristof"]
[Result "1-0"]
[ECO "B29"]
[WhiteElo "2043"]
[BlackElo "2356"]
[Annotator "ChessBase"]
[PlyCount "77"]
[EventDate "2020.09.25"]
[EventType "swiss"]
[EventCountry "ROU"]
[SourceTitle "playchess.com"]
[Source "ChessBase"]
[SourceQuality "1"]
[TimeControl "5400+30"]

1. e4 {[%emt 0:00:00]} c5 {[%emt 0:00:00]} 2. Nf3 {[%emt 0:00:00]} Nf6 {[%emt 0:00:00]} 3. e5 {[%emt 0:04:39]} Nd5 {[%emt 0:01:24]} 4. Nc3 {[%emt 0:00:08]} Nxc3 {[%emt 0:00:05]} 5. bxc3 {[%emt 0:01:16]} d5 {[%emt 0:03:56]} 6. d4 {[%emt 0:00:28]} Nc6 {[%emt 0:03:03]} 7. Bd3 {[%emt 0:01:14]} Bg4 {[%emt 0:01:08]} 8. Bb2 {[%emt 0:07:12]} Qb6 {[%emt 0:11:08]} 9. Rb1 {[%emt 0:00:26]} Qa5 {[%emt 0:02:10]} 10. O-O {[%emt 0:00:34]} e6 {[%emt 0:04:53]} 11. h3 {[%emt 0:04:24]} Bxf3 {[%emt 0:04:40]} 12. Qxf3 {[%emt 0:00:09]} c4 {[%emt 0:00:06]} 13. Be2 {[%emt 0:00:14]} Qxa2 {[%emt 0:04:05]} 14. Qe3 {[%emt 0:04:46]} Be7 {[%emt 0:03:54]} 15. f4 {[%emt 0:00:34]} g6 {[%emt 0:00:14]} 16. Qc1 {[%emt 0:00:50]} Qa5 {[%emt 0:01:19]} 17. Ra1 {[%emt 0:00:23]} Qc7 {[%emt 0:00:17]} 18. g4 {[%emt 0:02:59]} O-O-O {[%emt 0:02:04]} 19. Ba3 {[%emt 0:00:06]} Rdf8 {[%emt 0:05:06]} 20. f5 {[%emt 0:07:54]} gxf5 {[%emt 0:03:22]} 21. gxf5 {[%emt 0:00:08]} Rfg8+ {[%emt 0:01:38]} 22. Kh1 {[%emt 0:00:08]} Bxa3 {[%emt 0:08:35]} 23. Qxa3 {[%emt 0:07:48]} Rg3 {[%emt 0:02:00]} 24. fxe6 {[%emt 0:02:05]} fxe6 {[%emt 0:22:25]} 25. Bg4 {[%emt 0:00:29]} Re8 {[%emt 0:01:11]} 26. Rf8 {[%emt 0:00:53]} Rxf8 {[%emt 0:10:05]} 27. Bxe6+ {[%emt 0:00:10]} Kb8 {[%emt 0:00:12]} 28. Qxf8+ {[%emt 0:00:04]} Qd8 {[%emt 0:00:07]} 29. Qf4 {[%emt 0:02:05]} Rxc3 {[%emt 0:03:11]} 30. Rg1 {[%emt 0:00:12]} Qe7 {[%emt 0:00:52]} 31. Qf6 {[%emt 0:08:00]} Qb4 {[%emt 0:01:04]} 32. Bd7 {[%emt 0:03:03]} Qa3 {[%emt 0:01:02]} 33. Qd6+ {[%emt 0:00:25]} Qxd6 {[%emt 0:00:10]} 34. exd6 {[%emt 0:00:02]} a5 {[%emt 0:00:52]} 35. Rg8+ {[%emt 0:00:24]} Ka7 {[%emt 0:00:20]} 36. Bxc6 {[%emt 0:00:04]} Rxh3+ {[%emt 0:00:20]} 37. Kg2 {[%emt 0:00:03]} Rh6 {[%emt 0:00:05]} 38. d7 {[%emt 0:00:06]} Rd6 {[%emt 0:00:09]} 39. Ba4 {[%emt 0:00:06]} 1-0